Workbook

Sheet How It Works
A3: First Round Matchups | B3: High | C3: Low | D3: Total | E3: % High | F3: % Low | G3: RNG Exp | H3: RNG Used | J3: Changes or reasons for using this RNG instead of the experienced one (the RNG will be from 1 to 10000)
A4: 1 vs 16 | B4: 112 | C4: 0 | D4: =B4+C4 -> 112 | E4: =B4/D4 -> 1 | F4: =C4/D4 -> 0 | G4: =E4*10000 -> 10000 | H4: 9970 | I4: * | J4: Although a 16 seed has never beaten a 1, it is bound to happen. This allows the 16 seed to win if the RNG is larger than 9998 (or basically, about .01% chance).
A5: 2 vs 15 | B5: 106 | C5: 6 | D5: =B5+C5 -> 112 | E5: =B5/D5 -> 0.9464285714 | F5: =C5/D5 -> 0.05357142857 | G5: =E5*10000 -> 9464.285714 | H5: 9464
A6: 3 vs 14 | B6: 96 | C6: 16 | D6: 112 | E6: 0.8571428571 | F6: 0.1428571429 | G6: 8571.428571 | H6: 8571
A7: 4 vs 13 | B7: 88 | C7: 24 | D7: 112 | E7: 0.7857142857 | F7: 0.2142857143 | G7: 7857.142857 | H7: 7857
A8: 5 vs 12 | B8: 74 | C8: 38 | D8: 112 | E8: 0.6607142857 | F8: 0.3392857143 | G8: 6607.142857 | H8: 6607
A9: 6 vs 11 | B9: 74 | C9: 38 | D9: 112 | E9: 0.6607142857 | F9: 0.3392857143 | G9: 6607.142857 | H9: 6607
A10: 7 vs 10 | B10: 67 | C10: 45 | D10: 112 | E10: 0.5982142857 | F10: 0.4017857143 | G10: 5982.142857 | H10: 5982
A11: 8 vs 9 | B11: 54 | C11: 58 | D11: 112 | E11: 0.4821428571 | F11: 0.5178571429 | G11: 4821.428571 | H11: 4821
A13: Second Round Matchups | B13: High | C13: Low | D13: Total | E13: % High | F13: % Low | G13: RNG Exp | H13: RNG Used
A14: 1 vs 8 | B14: 44 | C14: 10 | D14: =B14+C14 -> 54 | E14: =B14/D14 -> 0.8148148148 | F14: =C14/D14 -> 0.1851851852 | G14: =E14*10000 -> 8148.148148 | H14: 8148
A15: 1 vs 9 | B15: 54 | C15: 4 | D15: =B15+C15 -> 58 | E15: =B15/D15 -> 0.9310344828 | F15: =C15/D15 -> 0.06896551724 | G15: =E15*10000 -> 9310.344828 | H15: 9310
A16: 8 vs 16 | B16: - | C16: - | D16: - | E16: - | F16: - | G16: - | H16: 9950 | I16: * | J16: Gives a 16 seed a slightly higher chance than when playing a 1 seed
A17: 9 vs 16 | B17: - | C17: - | D17: - | E17: - | F17: - | G17: - | H17: 9930 | I17: * | J17: Gives a 16 seed a slightly higher chance than when playing an 8 seed
A18: 4 vs 5 | B18: 32 | C18: 28 | D18: =B18+C18 -> 60 | E18: 0.5333333333 | F18: 0.4666666667 | G18: 5333.333333 | H18: 5333
A19: 4 vs 12 | B19: 17 | C19: 11 | D19: 28 | E19: 0.6071428571 | F19: 0.3928571429 | G19: 6071.428571 | H19: 6071
A20: 5 vs 13 | B20: 11 | C20: 3 | D20: 14 | E20: 0.7857142857 | F20: 0.2142857143 | G20: 7857.142857 | H20: 7857
A21: 12 vs 13 | B21: 8 | C21: 2 | D21: 10 | E21: 0.8 | F21: 0.2 | G21: 8000 | H21: 8222 | I21: * | J21: The trend shows a 12 dominating the 13, but a little more balance would be expected as only 10 games have been played
A22: 3 vs 6 | B22: 34 | C22: 27 | D22: 61 | E22: 0.5573770492 | F22: 0.4426229508 | G22: 5573.770492 | H22: 5574
A23: 3 vs 11 | B23: 23 | C23: 12 | D23: 35 | E23: 0.6571428571 | F23: 0.3428571429 | G23: 6571.428571 | H23: 6571
A24: 6 vs 14 | B24: 11 | C24: 2 | D24: 13 | E24: 0.8461538462 | F24: 0.1538461538 | G24: 8461.538462 | H24: 8667 | I24: * | J24: Lack of too many games, giving the 6 seed more of an advantage
A25: 11 vs 14 | B25: 3 | C25: 0 | D25: 3 | E25: 1 | F25: 0 | G25: 10000 | H25: 9111 | I25: * | J25: Give the 11 seed a heavy advantage, but it is not a 100% that they beat the 14 seed in my opinion because only 3 games have been played.
A26: 2 vs 7 | B26: 48 | C26: 17 | D26: 65 | E26: 0.7384615385 | F26: 0.2615384615 | G26: 7384.615385 | H26: 7385
A27: 2 vs 10 | B27: 24 | C27: 17 | D27: 41 | E27: 0.5853658537 | F27: 0.4146341463 | G27: 5853.658537 | H27: 5854
A28: 7 vs 15 | B28: 2 | C28: 0 | D28: 2 | E28: 1 | F28: 0 | G28: 10000 | H28: 9375 | I28: * | J28: The 15 seed is a longshot to win, but since it is only a 7 seed give them some chance
A29: 10 vs 15 | B29: 4 | C29: 0 | D29: 4 | E29: 1 | F29: 0 | G29: 10000 | H29: 9111 | I29: * | J29: 15 seed is a longshot to win. Of the 19 games played between double digit seeds, the higher seed has only won 3 times, so not looking good for the 15.
A31: Sweet Sixteen | B31: High | C31: Low | D31: Total | E31: % High | F31: % Low | G31: RNG | H31: RNG Used
A32: 1 vs 4 | B32: 29 | C32: 12 | D32: =B32+C32 -> 41 | E32: =B32/D32 -> 0.7073170732 | F32: =C32/D32 -> 0.2926829268 | G32: =E32*10000 -> 7073.170732 | H32: 7073
A33: 1 vs 5 | B33: 28 | C33: 7 | D33: =B33+C33 -> 35 | E33: =B33/D33 -> 0.8 | F33: =C33/D33 -> 0.2 | G33: =E33*10000 -> 8000 | H33: 8000
A34: 1 vs 12 | B34: 18 | C34: 0 | D34: 18 | E34: 1 | F34: 0 | G34: 10000 | H34: 9960 | I34: * | J34: 12 seed is a long shot to win, and in reality probably have a less than 1% chance to win, but since 18 games have been played need to make the 1 seed a heavy favorite
A35: 1 vs 13 | B35: 4 | C35: 0 | D35: 4 | E35: 1 | F35: 0 | G35: 10000 | H35: 9945 | I35: * | J35: 13 seed is also a long shot, with even less of a chance then the 12 seed to win
A36: 4 vs 8 | B36: 2 | C36: 4 | D36: 6 | E36: 0.3333333333 | F36: 0.6666666667 | G36: 3333.333333 | H36: 4575 | I36: * | J36: Because of how strong the 4 and 8 seeds play against the 1 (overall 21-68(23.6%) compared to the 5 and 9 seeds being 11-81(11.2%)) so this should be a lot closer matchup than a 1 in 3 chance for the 4 seed
A37: 4 vs 9 | B37: 2 | C37: 0 | D37: 2 | E37: 1 | F37: 0 | G37: 10000 | H37: 8333 | I37: * | J37: Because of how well the 4 seed plays against the 1 compared to the 9 seed vs the 1, this would appear to be highly favorable for the 4 seed, but give the 9 seed a 1 in 6 chance because it has only occurred twice.
A38: 4 vs 16 | B38: - | C38: - | D38: - | E38: - | F38: - | G38: - | H38: 9960 | I38: * | J38: Never occurred, but the 4 seed would be almost as dominant as the 1 seed in this matchup
A39: 5 vs 8 | B39: 0 | C39: 2 | D39: 2 | E39: 0 | F39: 1 | G39: 0 | H39: 4222 | I39: * | J39: An actual matchup where the 8 seed is favored because of how much better they play against the 1 and 4, where the 5 seed has struggled in those matchups.
A40: 5 vs 9 | B40: 1 | C40: 1 | D40: 2 | E40: 0.5 | F40: 0.5 | G40: 5000 | H40: 7425 | I40: * | J40: 5 seed has to be a favorite with about a 1 in 4 chance of the 9 seed with the upset.
A41: 5 vs 16 | B41: - | C41: - | D41: - | E41: - | F41: - | G41: - | H41: 9945 | I41: * | J41: 5 seed would be heavily favored, just a little bit lower than a 4 seed
A42: 8 vs 12 | B42: 0 | C42: 1 | D42: 1 | E42: 0 | F42: 1 | G42: 0 | H42: 8333 | I42: * | J42: 8 seed is heavily favored because how to tough they are against the 1,4,and 5 seeds. Compared to the 12 seed against these matchups, the 12 would win only about 1 in 6
A43: 8 vs 13 | B43: 1 | C43: 0 | D43: 1 | E43: 1 | F43: 0 | G43: 10000 | H43: 9275 | I43: * | J43: 8 seed has to be more favored than when it played the 12 seed, just by using records against similar teams.
A44: 9 vs 12 | B44: - | C44: - | D44: - | E44: - | F44: - | G44: - | H44: 8245 | I44: * | J44: 9 seed is favored to win just over 80%
A45: 9 vs 13 | B45: - | C45: - | D45: - | E45: - | F45: - | G45: - | H45: 8755 | I45: * | J45: 9 seed is likely to win most of the matchups, around 88%
A46: 12 vs 16 | B46: - | C46: - | D46: - | E46: - | F46: - | G46: - | H46: 9167 | I46: * | J46: 12 is a heavy favorite, losing about 1 in 12
A47: 13 vs 16 | B47: - | C47: - | D47: - | E47: - | F47: - | G47: - | H47: 8889 | I47: * | J47: 13 is a favorite, losing only 1 in 9
A48: 2 vs 3 | B48: 22 | C48: 13 | D48: 35 | E48: 0.6285714286 | F48: 0.3714285714 | G48: 6285.714286 | H48: 6286
A49: 2 vs 6 | B49: 20 | C49: 6 | D49: 26 | E49: 0.7692307692 | F49: 0.2307692308 | G49: 7692.307692 | H49: 7692
A50: 2 vs 11 | B50: 10 | C50: 1 | D50: 11 | E50: 0.9090909091 | F50: 0.09090909091 | G50: 9090.909091 | H50: 9222 | I50: * | J50: 2 seeds dominate the 11 seed, maybe even a bit more than what the tournament has produced
A51: 2 vs 14 | B51: - | C51: - | D51: - | E51: - | F51: - | G51: - | H51: 9777 | I51: * | J51: This has never occurred, and the 14 seed has lost both chances in the Sweet Sixteen, so they are very unlikely to matchup well against a 2 seed
A52: 3 vs 7 | B52: 6 | C52: 3 | D52: 9 | E52: 0.6666666667 | F52: 0.3333333333 | G52: 6666.666667 | H52: 6667 | I52: * | J52: Although 7s beat the 10 seed more often, the 10 seed plays both the 3 and 2 seeds much better, but keep a 1 in 3 chance.
A53: 3 vs 10 | B53: 9 | C53: 4 | D53: 13 | E53: 0.6923076923 | F53: 0.3076923077 | G53: 6923.076923 | H53: 6923
A54: 3 vs 15 | B54: - | C54: - | D54: - | E54: - | F54: - | G54: - | H54: 9930 | I54: * | J54: 3 seed is a heavy favorite, as all 4 15 seeds to upset the 2 seed have lost to the 7 and 10 seeds
A55: 6 vs 7 | B55: 3 | C55: 3 | D55: 6 | E55: 0.5 | F55: 0.5 | G55: 5000 | H55: 5555 | I55: * | J55: Give the 6 seed a slight advantage over a coin flip matchup
A56: 6 vs 10 | B56: 4 | C56: 2 | D56: 6 | E56: 0.6666666667 | F56: 0.3333333333 | G56: 6666.666667 | H56: 6272 | I56: * | J56: 10 seeds have historically played tough after the first round, beating the 2 seed almost 43% in the second round. This means they would play a 6 seed a lot tougher than the 3 seed
A57: 6 vs 15 | B57: - | C57: - | D57: - | E57: - | F57: - | G57: - | H57: 9805 | I57: * | J57: 6 seeds are strong in the Sweet Sixteen, and since a 15 seed has never been, this may be over before it started
A58: 7 vs 11 | B58: 0 | C58: 3 | D58: 3 | E58: 0 | F58: 1 | G58: 0 | H58: 4615 | I58: * | J58: Surprisingly the 11 seeds are undefeated against 7 seeds thus far, but with only 3 matchups I would expect this match to be closer to a coinflip, giving the 11 seed a slight edge for past experience
A59: 7 vs 14 | B59: 1 | C59: 0 | D59: 1 | E59: 1 | F59: 0 | G59: 10000 | H59: 9191 | I59: * | J59: 14 seeds have never made it past this round, only been to the Sweet Sixteen twice, so they have to be heavy underdogs
A60: 10 vs 11 | B60: 0 | C60: 1 | D60: 1 | E60: 0 | F60: 1 | G60: 0 | H60: 4351 | I60: * | J60: Probably the best double digit seeded matchup you could ask for, and extremely close to a coinflip, but edge goes to the 11 for their record in later rounds
A61: 10 vs 14 | B61: 1 | C61: 0 | D61: 1 | E61: 1 | F61: 0 | G61: 10000 | H61: 7222 | I61: * | J61: 10 seeds would be a favorite, but don't give the game away because the 14 seed stands about a 1 in 4 chance
A62: 11 vs 15 | B62: - | C62: - | D62: - | E62: - | F62: - | G62: - | H62: 9555 | I62: * | J62: Expect the 11 seed to be favorites as a 15 has never even advanced this far.
A63: 14 vs 15 | B63: - | C63: - | D63: - | E63: - | F63: - | G63: - | H63: 5555 | I63: * | J63: Another coinflip game, but giving the edge to the 14 seed just because they have been to the Sweet Sixteen before and need the monkey off their back
A65: Elite Eight | B65: High | C65: Low | D65: Total | E65: % High | F65: % Low | G65: RNG | H65: RNG Used
A66: 1 vs 2 | B66: 18 | C66: 20 | D66: =B66+C66 -> 38 | E66: =B66/D66 -> 0.4736842105 | F66: =C66/D66 -> 0.5263157895 | G66: =E66*10000 -> 4736.842105 | H66: 4737 | I66: * | J66: Suprisingly 2 seed is slightly favored, but in the Final Four and Championship, the 1 seed is highly favored
A67: 1 vs 3 | B67: 12 | C67: 8 | D67: =B67+C67 -> 20 | E67: =B67/D67 -> 0.6 | F67: =C67/D67 -> 0.4 | G67: =E67*10000 -> 6000 | H67: 6000
A68: 1 vs 6 | B68: 6 | C68: 2 | D68: 8 | E68: 0.75 | F68: 0.25 | G68: 7500 | H68: 7500 | I68: * | J68: Not enough games but probably close to the true trend
A69: 1 vs 7 | B69: 4 | C69: 0 | D69: 4 | E69: 1 | F69: 0 | G69: 10000 | H69: 8750 | I69: * | J69: The 7 is bound to win at some point, but because of how they play against other high seeds (2 and 3), they are probably a 1 in 8 chance.
A70: 1 vs 10 | B70: 4 | C70: 0 | D70: 4 | E70: 1 | F70: 0 | G70: 10000 | H70: 8650 | I70: * | J70: The 10 plays a lot tougher against higher seeds (2 and 3) than the 7, so altough not likely to win just a slightly better chance than the 7 seed.
A71: 1 vs 11 | B71: 2 | C71: 3 | D71: 5 | E71: 0.4 | F71: 0.6 | G71: 4000 | H71: 6667 | I71: * | J71: Very big surprise, but probably a fluke as only 5 games have been played. Adrenaline can only go so far, so expecting this to be closer to a 1 in 3 chance of an upset.
A72: 1 vs 14 | B72: - | C72: - | D72: - | E72: - | F72: - | G72: - | H72: 9950 | I72: * | J72: Would expect the 14 seed to be a huge underdog, especially because no seed higher than 12 has made it this far
A73: 1 vs 15 | B73: - | C73: - | D73: - | E73: - | F73: - | G73: - | H73: 9950 | I73: * | J73: Would expect the 15 seed to be a huge underdog, especially because no seed higher than 12 has made it this far
A74: 2 vs 4 | B74: 2 | C74: 4 | D74: 6 | E74: 0.3333333333 | F74: 0.6666666667 | G74: 3333.333333 | H74: 5000 | I74: * | J74: 2 seeds don't show up unless they are plaing the 1 seed it looks like, but this in reality is probably a coin flip
A75: 2 vs 5 | B75: 0 | C75: 3 | D75: 3 | E75: 0 | F75: 1 | G75: 0 | H75: 4550 | I75: * | J75: Same reasoning as above, this is probably closer to a coin flip, but because a 2 has never beaten a 5, will give 5 a slight edge
A76: 2 vs 8 | B76: 2 | C76: 2 | D76: 4 | E76: 0.5 | F76: 0.5 | G76: 5000 | H76: 5555 | I76: * | J76: Give the 2 seed an edge because there just haven't been enough games to show a trend.
A77: 2 vs 9 | B77: - | C77: - | D77: - | E77: - | F77: - | G77: - | H77: 8222 | I77: * | J77: Going to make the 2 seed a big favorite because 9 seeds don't get it done after the first round
A78: 2 vs 12 | B78: 1 | C78: 0 | D78: 1 | E78: 1 | F78: 0 | G78: 10000 | H78: 9222 | I78: * | J78: Only one 12 seed has ever made it this far, and I agree that the journey ends here
A79: 2 vs 13 | B79: - | C79: - | D79: - | E79: - | F79: - | G79: - | H79: 9935 | I79: * | J79: Unfortunately for the 13 seed, they have historically played the 1 seed in the previous round, and thus have never been this far.
A80: 2 vs 16 | B80: - | C80: - | D80: - | E80: - | F80: - | G80: - | H80: 9965 | I80: * | J80: If a 16 seed were to ever win a game, I don't believe there run would last this long. Very slim chances
A81: 3 vs 4 | B81: 2 | C81: 1 | D81: 3 | E81: 0.6666666667 | F81: 0.3333333333 | G81: 6666.666667 | H81: 6674 | I81: * | J81: Overall the 3 seed is 4-1 against the 4 seed, winning twice in the Final Four
A82: 3 vs 5 | B82: 2 | C82: 1 | D82: 3 | E82: 0.6666666667 | F82: 0.3333333333 | G82: 6666.666667 | H82: 5674 | I82: * | J82: Much like the 4 seed, the 5 seed does well in this round, with a 6-2 record. Another Coin Flip like game.
A83: 3 vs 8 | B83: 1 | C83: 0 | D83: 1 | E83: 1 | F83: 0 | G83: 10000 | H83: 5222 | I83: * | J83: 8 seeds have played well in the Elite Eight, even splitting a four game series with the 2 seed. Likely a coin flip, but giving a slight edge to the 3 seed because they have done it before.
A84: 3 vs 9 | B84: 1 | C84: 0 | D84: 1 | E84: 1 | F84: 0 | G84: 10000 | H84: 8000 | I84: * | J84: The 9 seed has only eveer been to the Elite Eight once, losing to the 3 seed. Giving them a 20% edge, maybe out of sheer luck they can get it done.
A85: 3 vs 12 | B85: - | C85: - | D85: - | E85: - | F85: - | G85: - | H85: 9222 | I85: * | J85: The end of the road is in sight, but don't see the 12 seed making the hump this time around, using the same probability as if they were playing the 2.
A86: 3 vs 13 | B86: - | C86: - | D86: - | E86: - | F86: - | G86: - | H86: 9545 | I86: * | J86: The 13 seed has never been this far before, losing in all 5 Sweet Sixteen games it has had. Expecting a loss due to being in unkown territory.
A87: 3 vs 16 | B87: - | C87: - | D87: - | E87: - | F87: - | G87: - | H87: 9945 | I87: * | J87: 16 seed is a very long shot, winning less than 1 %
A88: 4 vs 6 | B88: 2 | C88: 1 | D88: 3 | E88: 0.6666666667 | F88: 0.3333333333 | G88: 6666.666667 | H88: 7850 | I88: * | J88: 4 seed is a strong favorite because of how well they do in this round, whereas the 6 seed is a combined 3-10.
A89: 4 vs 7 | B89: 2 | C89: 0 | D89: 2 | E89: 1 | F89: 0 | G89: 10000 | H89: 8850 | I89: * | J89: 7 seeds are not as strong as the 6 seed in this round, so they get a 10% chance less of the upset.
A90: 4 vs 10 | B90: 2 | C90: 0 | D90: 2 | E90: 1 | F90: 0 | G90: 10000 | H90: 9341 | I90: * | J90: 10 seed is a heavy underdog because they have never advanced pass this round.
A91: 4 vs 11 | B91: - | C91: - | D91: - | E91: - | F91: - | G91: - | H91: 7433 | I91: * | J91: 11 seeds are actually extremely good in this round, with an overall record of 3-2, all against 1 seeds. Realistically they are still underdogs, but would fare better than the 10 seed.
A92: 4 vs 14 | B92: - | C92: - | D92: - | E92: - | F92: - | G92: - | H92: 9276 | I92: * | J92: 14 seed has never been here, and since the 4 seed is usually coming off a victory over the 1, they have to be heavy favorites.
A93: 4 vs 15 | B93: - | C93: - | D93: - | E93: - | F93: - | G93: - | H93: 9611 | I93: * | J93: 15 seed has never advanced past the second round, and expecting the 4 seed to play as tough as the 1 seed, they would only fare slightly better than the reasoing given above against the 1 seed.
A94: 5 vs 6 | B94: 1 | C94: 0 | D94: 1 | E94: 1 | F94: 0 | G94: 10000 | H94: 5555 | I94: * | J94: 5 seeds are stronger in this round then the 6 round, but because the seeding is so similar giving just a small edge to the 5 seed.
A95: 5 vs 7 | B95: - | C95: - | D95: - | E95: - | F95: - | G95: - | H95: 7838 | I95: * | J95: 7 seeds are 0 for 7 in the Elite Eight, and facing a 5 seed would give them a chance, but the odds are not in their favor.
A96: 5 vs 10 | B96: 1 | C96: 0 | D96: 1 | E96: 1 | F96: 0 | G96: 10000 | H96: 9269 | I96: * | J96: 10 seeds have the unfortunate task of playing either the 1 seed, or the team that beat the 1 seed and so have never advanced past this round.
A97: 5 vs 11 | B97: - | C97: - | D97: - | E97: - | F97: - | G97: - | H97: 6161 | I97: * | J97: 11 seeds are 3-2 in this round, facing the 1 seed everytime. Credit great coaching on getting the team this far with 3 upsets, but the 5 probably came off a victory vs the 1 seed. Great matchup, but the 5 seed gets the edge.
A98: 5 vs 14 | B98: - | C98: - | D98: - | E98: - | F98: - | G98: - | H98: 8972 | I98: * | J98: A 14 seed has never made it to the Elite Eight before and the 5 seed would have had to beat a 1 or 4 to get here so they would be heavily favored
A99: 5 vs 15 | B99: - | C99: - | D99: - | E99: - | F99: - | G99: - | H99: 9298 | I99: * | J99: The 15 seed has never even made it to the Sweet 16 so the 5 will be heavily favored
A100: 6 vs 8 | B100: 0 | C100: 1 | D100: 1 | E100: 0 | F100: 1 | G100: 0 | H100: 3687 | I100: * | J100: Historically the 8 seed has done better in the Elite Eight than the 6 seed, so they are slight favorites
A101: 6 vs 9 | B101: - | C101: - | D101: - | E101: - | F101: - | G101: - | H101: 8427 | I101: * | J101: The 9 seed has only been to the Elite Eight once, and historically don’t go very far in the tournament so the 6 seed will have a big advantage
A102: 6 vs 12 | B102: - | C102: - | D102: - | E102: - | F102: - | G102: - | H102: 8638 | I102: * | J102: Only one 12 seed has come this far, but the 6 seed typically doesn’t do well in the elite eight so the 6 will be significantly favored to win
A103: 6 vs 13 | B103: - | C103: - | D103: - | E103: - | F103: - | G103: - | H103: 8999 | I103: * | J103: The 13 seed has never been to the Elite Eight so the odds are not in their favor
A104: 6 vs 16 | B104: - | C104: - | D104: - | E104: - | F104: - | G104: - | H104: 9921 | I104: * | J104: The odds of this happening are extremely small, 6 has the edge
A105: 7 vs 8 | B105: 0 | C105: 1 | D105: 1 | E105: 0 | F105: 1 | G105: 0 | H105: 2312 | I105: * | J105: 7 seeds have never won in the elite eight and 8 seeds typically play really well here so the 8 is a heavy favorite to win
A106: 7 vs 9 | B106: - | C106: - | D106: - | E106: - | F106: - | G106: - | H106: 7720 | I106: * | J106: Surpisingly the 9 seeds have done extremely poorly even though they hold the edge overall in the first round vs the 8 seeds, so 7 seed is strongly favored.
A107: 7 vs 12 | B107: - | C107: - | D107: - | E107: - | F107: - | G107: - | H107: 7865 | I107: * | J107: The advantage goes to the 7 seed because the 12 seed has slim odds of even getting this far.
A108: 7 vs 13 | B108: - | C108: - | D108: - | E108: - | F108: - | G108: - | H108: 8147 | I108: * | J108: Again, with the lack of experience for the 13 seed, the 6 seed is a big favorite.
A109: 7 vs 16 | B109: - | C109: - | D109: - | E109: - | F109: - | G109: - | H109: 9876 | I109: * | J109: If the 16 seed and 7 seed were to matchup, the laws of gravity would be reversed.
A110: 8 vs 10 | B110: - | C110: - | D110: - | E110: - | F110: - | G110: - | H110: 8243 | I110: * | J110: The 8 and 10 seeds would be lopsided as the 8 seeds play tougher and tougher as the tournament goes on, where the 10 seeds trend to fade off.
A111: 8 vs 11 | B111: - | C111: - | D111: - | E111: - | F111: - | G111: - | H111: 5283 | I111: * | J111: 11 seeds play well if they ever get this far, and this matchup occurred in the Final Four in 2011, so expecting a great match.
A112: 8 vs 14 | B112: - | C112: - | D112: - | E112: - | F112: - | G112: - | H112: 8678 | I112: * | J112: 8 seeds would likely have a great advantage over the 14 seed
A113: 8 vs 15 | B113: - | C113: - | D113: - | E113: - | F113: - | G113: - | H113: 8878 | I113: * | J113: This would be very unlikely, but expecting the 8 seed to advance and end the dreams of the 15 seed.
A114: 9 vs 10 | B114: - | C114: - | D114: - | E114: - | F114: - | G114: - | H114: 5134 | I114: * | J114: Neither team has been to the Final Four, and I would expect almost a coinflip, but giving the slight edge to the 9 seed.
A115: 9 vs 11 | B115: - | C115: - | D115: - | E115: - | F115: - | G115: - | H115: 4157 | I115: * | J115: 11 seed would have to be favored because of past experience of actually making it to the Final Four.
A116: 9 vs 14 | B116: - | C116: - | D116: - | E116: - | F116: - | G116: - | H116: 7129 | I116: * | J116: 9 seed is favored, but if a 14 seed got this far they would stand a chance against the 9.
A117: 9 vs 15 | B117: - | C117: - | D117: - | E117: - | F117: - | G117: - | H117: 9286 | I117: * | J117: 9 seed is heavily favored, and the 15 seed will end up going back home, but the probability of them being here in the first place is low
A118: 10 vs 12 | B118: - | C118: - | D118: - | E118: - | F118: - | G118: - | H118: 6333 | I118: * | J118: Giving the edge to the 10 seed because they get to this point of the tournament once every four years, and the 12 seed has only been once
A119: 10 vs 13 | B119: - | C119: - | D119: - | E119: - | F119: - | G119: - | H119: 9145 | I119: * | J119: Another big edge to the 10 seed because the 13 seed has never even been here before.
A120: 10 vs 16 | B120: - | C120: - | D120: - | E120: - | F120: - | G120: - | H120: 9567 | I120: * | J120: Huge advantage to the 10 seed. If this matchup occurred, I would eat a tree.
A121: 11 vs 12 | B121: - | C121: - | D121: - | E121: - | F121: - | G121: - | H121: 7983 | I121: * | J121: 11 seed gets the edge because they have been trending towards being great (George Mason and VCU recently) whereas the 12 seed has not been as strong.
A122: 11 vs 13 | B122: - | C122: - | D122: - | E122: - | F122: - | G122: - | H122: 8345 | I122: * | J122: 11 seed is definitely heavily favored, moreso than against the 12 seed
A123: 11 vs 16 | B123: - | C123: - | D123: - | E123: - | F123: - | G123: - | H123: 9678 | I123: * | J123: Probably the worst chance the 16 seed has against any double digit seeded team
A124: 12 vs 14 | B124: - | C124: - | D124: - | E124: - | F124: - | G124: - | H124: 7129 | I124: * | J124: Edge goes to the 12 seed because the 14 seed really doesn't even have much of a shot of getting this far.
A125: 12 vs 15 | B125: - | C125: - | D125: - | E125: - | F125: - | G125: - | H125: 7823 | I125: * | J125: 15 seeds have never even made it to the Sweet Sixteen, so the 12 would have the advantage
A126: 13 vs 14 | B126: - | C126: - | D126: - | E126: - | F126: - | G126: - | H126: 5243 | I126: * | J126: Neither have made it to the Elite Eight, but this has to be evenly matched with only a slight edge given to the 13 because they have more wins overall.
A127: 13 vs 15 | B127: - | C127: - | D127: - | E127: - | F127: - | G127: - | H127: 5575 | I127: * | J127: Highly improbable matchup, but given the fact that the 15 seed has never made past the second round, the 13 is somewhat favored
A128: 14 vs 16 | B128: - | C128: - | D128: - | E128: - | F128: - | G128: - | H128: 5682 | I128: * | J128: Not likely, basically a coinflip but the 14 has a slight edge
A129: 15 vs 16 | B129: - | C129: - | D129: - | E129: - | F129: - | G129: - | H129: 5000 | I129: * | J129: This would be an awesome matchup, and a coinflip, but you will probably be struck by lighting several times before this ever happens
A131: Final Four/Championship | B131: High | C131: Low | D131: Total | E131: % High | F131: % Low | G131: RNG | H131: RNG Used | I131: * | J131: The Final Four and Championship are combined to one because the seed combinations are the exact same for both.
A132: 1 vs 1 | B132: 16 | C132: 16 | D132: 16 | E132: =B132/D132 -> 1 | F132: =C132/D132 -> 1 | G132: =E132*10000 -> 10000 | H132: 5000 | I132: * | J132: Same seeds will always be a coinflip.
A133: 1 vs 2 | B133: 12 | C133: 5 | D133: =B133+C133 -> 17 | E133: =B133/D133 -> 0.7058823529 | F133: =C133/D133 -> 0.2941176471 | G133: =E133*10000 -> 7058.823529 | H133: 7059 | I133: * | J133: Although 2 seeds have a winning record (20-18) vs 1 seeds in the Elite Eight, once it gets to this stage they struggle, so credit the 1 seed for coming through in crunch time.
A134: 1 vs 3 | B134: 3 | C134: 4 | D134: 7 | E134: 0.4285714286 | F134: 0.5714285714 | G134: 4285.714286 | H134: 5294 | I134: * | J134: Not enough games to consider this the trend, so using the combined record from the Elite Eight we get the 1 seed with a record of 15-12, but going to weight this round a little heavier by doubling the results to give us 18-16.
A135: 1 vs 4 | B135: 6 | C135: 2 | D135: 8 | E135: 0.75 | F135: 0.25 | G135: 7500 | H135: 7173 | I135: * | J135: Going to make this more like what we see in the Sweet Sixteen, as I feel this is an unfair trend for the 4.
A136: 1 vs 5 | B136: 4 | C136: 0 | D136: 4 | E136: 1 | F136: 0 | G136: 10000 | H136: 8333 | I136: * | J136: Not a gimme game for the 1 seed, because they have lost to a 6 and 8 seed before (NC State and Jimmy V), but probably a very favorable matchup for the 1.
A137: 1 vs 6 | B137: 1 | C137: 1 | D137: 2 | E137: 0.5 | F137: 0.5 | G137: 5000 | H137: 7777 | I137: * | J137: Only 2 games played which were split, but considering its only two games, probably going to give the edge to the 1 seed by a longshot.
A138: 1 vs 7 | B138: - | C138: - | D138: - | E138: - | F138: - | G138: - | H138: 8666 | I138: * | J138: Seeing as 7s don't get here, there is no reason to believe they would do that well.
A139: 1 vs 8 | B139: 1 | C139: 1 | D139: 2 | E139: 0.5 | F139: 0.5 | G139: 5000 | H139: 7982 | I139: * | J139: 8s are the highest seeds to ever win in this round, but only 1 victory has occurred besides the 8 vs 11 (Butler and VCU in 2011). They are tougher than a 7, so probably similar to a 5 or 6 seed.
A140: 1 vs 9 | B140: - | C140: - | D140: - | E140: - | F140: - | G140: - | H140: 8798 | I140: * | J140: More so than the 7 seeds, they struggle in later rounds.
A141: 1 vs 10 | B141: - | C141: - | D141: - | E141: - | F141: - | G141: - | H141: 8888 | I141: * | J141: If a 10 seed makes it this far, then they still have a huge battle to come.
A142: 1 vs 11 | B142: - | C142: - | D142: - | E142: - | F142: - | G142: - | H142: 7999 | I142: * | J142: Giving the 11 seed about the same shot as an 8 seed against the 1, because they have made it this far before.
A143: 1 vs 12 | B143: - | C143: - | D143: - | E143: - | F143: - | G143: - | H143: 9263 | I143: * | J143: 12 seed would struggle because they have only 1 Elite Eight appearance, which they lost, but they are 18-1 in the Sweet Sixteen, with the only victory against an 8 seed.
A144: 1 vs 13 | B144: - | C144: - | D144: - | E144: - | F144: - | G144: - | H144: 9311 | I144: * | J144: 13 seed would be even less likely to win than a 12.
A145: 1 vs 14 | B145: - | C145: - | D145: - | E145: - | F145: - | G145: - | H145: 9457 | I145: * | J145: These matchups, although would lead headlines, would in reality almost never occur, and if they did, it is only one more giant to slay on top of all the other upsets.
A146: 1 vs 15 | B146: - | C146: - | D146: - | E146: - | F146: - | G146: - | H146: 9677 | I146: * | J146: Just a little closer to a slaughter than the 14 seed.
A147: 1 vs 16 | B147: - | C147: - | D147: - | E147: - | F147: - | G147: - | H147: 9725 | I147: * | J147: Not as favorable as in the First Round where the 1 seed is undefeated, but if a 16 seed made it this far, they win maybe 1 in 20.
A148: 2 vs 2 | B148: 2 | C148: 2 | D148: 2 | E148: 1 | F148: 1 | G148: 10000 | H148: 5000
A149: 2 vs 3 | B149: 6 | C149: 4 | D149: 10 | E149: 0.6 | F149: 0.4 | G149: 6000 | H149: 6000
A150: 2 vs 4 | B150: 1 | C150: 0 | D150: 1 | E150: 1 | F150: 0 | G150: 10000 | H150: 5000 | I150: * | J150: Giving double the weight to the games in the Final Four, this gives the 2 and 4 seeds a coinflip, because the 4 seed actually has the better record in the Elite Eight at 4-2.
A151: 2 vs 5 | B151: 0 | C151: 1 | D151: 1 | E151: 0 | F151: 1 | G151: 0 | H151: 4785 | I151: * | J151: Surprisingly the 2 seed is 0-4 against the 5 seed, so going to give 5 seed the advantage but should be closer to a coinflip
A152: 2 vs 6 | B152: 1 | C152: 1 | D152: 2 | E152: 0.5 | F152: 0.5 | G152: 5000 | H152: 7415 | I152: * | J152: The 2 seed is 21-7 against the 6 seed, going back to the Sweet Sixteen
A153: 2 vs 7 | B153: - | C153: - | D153: - | E153: - | F153: - | G153: - | H153: 7385 | I153: * | J153: Using the same records from the Second Round
A154: 2 vs 8 | B154: 0 | C154: 1 | D154: 1 | E154: 0 | F154: 1 | G154: 0 | H154: 5035 | I154: * | J154: The 2 seed is a slight underdog because overall is only 2-3 against the 8 seed, but a coinflip is expected.
A155: 2 vs 9 | B155: - | C155: - | D155: - | E155: - | F155: - | G155: - | H155: 8222 | I155: * | J155: Giving a large edge to the 2 seed, with the same likelihood as in the Elite Eight
A156: 2 vs 10 | B156: - | C156: - | D156: - | E156: - | F156: - | G156: - | H156: 5854 | I156: * | J156: Using the same records from the Second Round
A157: 2 vs 11 | B157: 1 | C157: 0 | D157: 1 | E157: 1 | F157: 0 | G157: 10000 | H157: 9167 | I157: * | J157: The 2 seed is 11-1 against the 11 all time.
A158: 2 vs 12 | B158: - | C158: - | D158: - | E158: - | F158: - | G158: - | H158: 8722 | I158: * | J158: Using the same arguments as in the Elite Eight because this has never happened, but making it 5% closer
A159: 2 vs 13 | B159: - | C159: - | D159: - | E159: - | F159: - | G159: - | H159: 9435 | I159: * | J159: Using the same arguments as in the Elite Eight because this has never happened, but making it 5% closer
A160: 2 vs 14 | B160: - | C160: - | D160: - | E160: - | F160: - | G160: - | H160: 9777 | I160: * | J160: This has never occurred, so using the same idea as in the Sweet Sixteen
A161: 2 vs 15 | B161: - | C161: - | D161: - | E161: - | F161: - | G161: - | H161: 9464 | I161: * | J161: A 15 seed has never made it past the Second Round, so just going to use the same value as the First Round because this is unlikely to occur.
A162: 2 vs 16 | B162: - | C162: - | D162: - | E162: - | F162: - | G162: - | H162: 9765 | I162: * | J162: Using the same arguments as in the Elite Eight because this has never happened, but making it 2% closer
A163: 3 vs 3 | B163: 1 | C163: 1 | D163: 1 | E163: 1 | F163: 1 | G163: 10000 | H163: 5000
A164: 3 vs 4 | B164: 2 | C164: 0 | D164: 2 | E164: 1 | F164: 0 | G164: 10000 | H164: 7899 | I164: * | J164: Overall the 3 seed is 4-1 against the 4
A165: 3 vs 5 | B165: - | C165: - | D165: - | E165: - | F165: - | G165: - | H165: 6674 | I165: * | J165: Happened 3 times in the Elite Eight, with a 2:1 edge for the 3 seed
A166: 3 vs 6 | B166: - | C166: - | D166: - | E166: - | F166: - | G166: - | H166: 5574 | I166: * | J166: Using the results from the Second Round for this one, which is near a coinflip
A167: 3 vs 7 | B167: - | C167: - | D167: - | E167: - | F167: - | G167: - | H167: 6667 | I167: * | J167: Using the results from the Sweet Sixteen
A168: 3 vs 8 | B168: 1 | C168: 0 | D168: 1 | E168: 1 | F168: 0 | G168: 10000 | H168: 7658 | I168: * | J168: 3 seed is 2-0 against the 8, and it would trend to be a very large hill to climb for the 8 seed.
A169: 3 vs 9 | B169: - | C169: - | D169: - | E169: - | F169: - | G169: - | H169: 8000 | I169: * | J169: The only time a 9 seed made it to the Elite Eight, a 3 seed beat them.
A170: 3 vs 10 | B170: - | C170: - | D170: - | E170: - | F170: - | G170: - | H170: 6923 | I170: * | J170: Using the same results from the Sweet Sixteen
A171: 3 vs 11 | B171: 1 | C171: 0 | D171: 1 | E171: 1 | F171: 0 | G171: 10000 | H171: 7071 | I171: * | J171: Using the results from the Second round, but then adding 5% to the 3 seed for beating the 11 this late before.
A172: 3 vs 12 | B172: - | C172: - | D172: - | E172: - | F172: - | G172: - | H172: 8722 | I172: * | J172: Using the same arguments as in the Elite Eight because this has never happened, but making it 5% closer
A173: 3 vs 13 | B173: - | C173: - | D173: - | E173: - | F173: - | G173: - | H173: 9187 | I173: * | J173: The 13 seed has never been this far before, losing in all 5 Sweet Sixteen games it has had. Expecting a loss due to being in unkown territory.
A174: 3 vs 14 | B174: - | C174: - | D174: - | E174: - | F174: - | G174: - | H174: 9171 | I174: * | J174: Straying off the trend of the First Round because of uncharted territory for the 14 seed.
A175: 3 vs 15 | B175: - | C175: - | D175: - | E175: - | F175: - | G175: - | H175: 9430 | I175: * | J175: Has never occurred, so just making it 5% closer than in the Sweet Sixteen
A176: 3 vs 16 | B176: - | C176: - | D176: - | E176: - | F176: - | G176: - | H176: 9667 | I176: * | J176: What is a 16 seed to a 3 seed? Food.
A177: 4 vs 4 | B177: - | C177: - | D177: - | E177: - | F177: - | G177: - | H177: 5000
A178: 4 vs 5 | B178: 1 | C178: 0 | D178: 1 | E178: 1 | F178: 0 | G178: 10000 | H178: 5333 | I178: * | J178: Using the same number as in the Second Round
A179: 4 vs 6 | B179: 0 | C179: 1 | D179: 1 | E179: 0 | F179: 1 | G179: 0 | H179: 6123 | I179: * | J179: Alltime this matchup is 2-2 including the Elite Eight, but 6 seeds have not shown consistency in late stages where the 4 seed can
A180: 4 vs 7 | B180: - | C180: - | D180: - | E180: - | F180: - | G180: - | H180: 7185 | I180: * | J180: Unlikely in the Final Four, but if it did happen the 4 seed would be favorites
A181: 4 vs 8 | B181: - | C181: - | D181: - | E181: - | F181: - | G181: - | H181: 4876 | I181: * | J181: It doesn't even occur too often in the Sweet Sixteen, and surprisingly the 8 seed has the better record. Very close to a coinflip at this point.
A182: 4 vs 9 | B182: - | C182: - | D182: - | E182: - | F182: - | G182: - | H182: 8127 | I182: * | J182: Making it a little closer than what was used during the Sweet Sixteen
A183: 4 vs 10 | B183: - | C183: - | D183: - | E183: - | F183: - | G183: - | H183: 8679 | I183: * | J183: Would be a great headliner to see the 10 seed advance, but it is not likely to occur.
A184: 4 vs 11 | B184: - | C184: - | D184: - | E184: - | F184: - | G184: - | H184: 7678 | I184: * | J184: 11 seeds play well in the Elite Eight, but are 0-3 in the Final Four rounds. They do play well against the 1 seed, just like the 4 so going to give them a lot better odds than would seem logical.
A185: 4 vs 12 | B185: - | C185: - | D185: - | E185: - | F185: - | G185: - | H185: 7071 | I185: * | J185: Using the Second Round stats, but giving a 10%boost to the 4 seed simply because they've been in this stage before.
A186: 4 vs 13 | B186: - | C186: - | D186: - | E186: - | F186: - | G186: - | H186: 7857 | I186: * | J186: Using the First Round Stats
A187: 4 vs 14 | B187: - | C187: - | D187: - | E187: - | F187: - | G187: - | H187: 9276 | I187: * | J187: Using the same reasoning as used in the Elite Eight
A188: 4 vs 15 | B188: - | C188: - | D188: - | E188: - | F188: - | G188: - | H188: 9611 | I188: * | J188: Using the same reasoning as used in the Elite Eight
A189: 4 vs 16 | B189: - | C189: - | D189: - | E189: - | F189: - | G189: - | H189: 9714 | I189: * | J189: 4 seed would be a slightly heavier favorite than even the 3 seed.
A190: 5 vs 5 | B190: 1 | C190: 1 | D190: 1 | E190: 1 | F190: 1 | G190: 10000 | H190: 5000
A191: 5 vs 6 | B191: - | C191: - | D191: - | E191: - | F191: - | G191: - | H191: 5155 | I191: * | J191: 5 seed won the only previous in the matchup, but in reality a coin flip
A192: 5 vs 7 | B192: - | C192: - | D192: - | E192: - | F192: - | G192: - | H192: 7465 | I192: * | J192: 7 seeds have never advanced past the Elite Eight. Giving it slightly closer matchup than used in the Elite Eight
A193: 5 vs 8 | B193: 1 | C193: 0 | D193: 1 | E193: 1 | F193: 0 | G193: 10000 | H193: 5055 | I193: * | J193: Coin flip, because using the Sweet Sixteen and weighting the Final Four matchup, although the 5 seed is 1-2, they won the one that mattered.
A194: 5 vs 9 | B194: - | C194: - | D194: - | E194: - | F194: - | G194: - | H194: 6925 | I194: * | J194: Making it closer by about 5% than used in the Sweet Sixteen
A195: 5 vs 10 | B195: - | C195: - | D195: - | E195: - | F195: - | G195: - | H195: 8769 | I195: * | J195: Ccloser by 5% than used in the Elite Eight
A196: 5 vs 11 | B196: - | C196: - | D196: - | E196: - | F196: - | G196: - | H196: 7256 | I196: * | J196: Going off of what was used for the 4 seed agains the 11 in this round, going to make it similar.
A197: 5 vs 12 | B197: - | C197: - | D197: - | E197: - | F197: - | G197: - | H197: 6607 | I197: * | J197: Using the First Round Stats
A198: 5 vs 13 | B198: - | C198: - | D198: - | E198: - | F198: - | G198: - | H198: 8457 | I198: * | J198: Using the Second Round stats, but giving a 6%boost to the 5 seed simply because they've been in this stage before.
A199: 5 vs 14 | B199: - | C199: - | D199: - | E199: - | F199: - | G199: - | H199: 8472 | I199: * | J199: Using the same projection as the Elite Eight, but a 5% boost to even things up a little more
A200: 5 vs 15 | B200: - | C200: - | D200: - | E200: - | F200: - | G200: - | H200: 8798 | I200: * | J200: Using the same projection as the Elite Eight, but a 5% boost to even things up a little more
A201: 5 vs 16 | B201: - | C201: - | D201: - | E201: - | F201: - | G201: - | H201: 9414 | I201: * | J201: 16 seed would have a 3% better chance than when playing a 4 seed this late
A202: 6 vs 6 | B202: - | C202: - | D202: - | E202: - | F202: - | G202: - | H202: 5000
A203: 6 vs 7 | B203: - | C203: - | D203: - | E203: - | F203: - | G203: - | H203: 5555 | I203: * | J203: 6 seed gets a slight advantage over just a coin flip
A204: 6 vs 8 | B204: - | C204: - | D204: - | E204: - | F204: - | G204: - | H204: 5000 | I204: * | J204: Great match, expecting a coin flip
A205: 6 vs 9 | B205: - | C205: - | D205: - | E205: - | F205: - | G205: - | H205: 8427 | I205: * | J205: Using the same as in the Elite Eight
A206: 6 vs 10 | B206: - | C206: - | D206: - | E206: - | F206: - | G206: - | H206: 6972 | I206: * | J206: Using the same as in the Sweet Sixteen, but giving the 6 seed an extra 7%
... 61 more rows

Sheet South
A1: South Division | Q1: Accuracy
A2: First Round | C2: Second Round | E2: Sweet Sixteen | G2: Elite Eight | J2: Sweet Sixteen | L2: Second Round | N2: First Round | Q2: Round | R2: Correct | S2: Points
Q3: First Round | R3: 8 | S3: =R3*10 -> 80
A4: 1 | B4: Kentucky | G4: Champion | N4: Baylor | O4: 3 | Q4: Second Round | R4: 4 | S4: =R4*20 -> 80
B5: [1] | C5: 1 | D5: Kentucky | G5: 1 | H5: Kentucky | L5: Baylor | M5: 3 | N5: [5] | Q5: Sweet Sixteen | R5: 2 | S5: =R5*40 -> 80
A6: 16 | B6: Miss Valley State | N6: South Dakota St. | O6: 14 | Q6: Elite Eight | R6: 1 | S6: =R6*80 -> 80
D7: [9] | E7: 1 | F7: Kentucky | J7: Baylor | K7: 3 | L7: [11] | Q7: Total | R7: =SUM(R3:R6) -> 15 | S7: =SUM(S3:S6) -> 320
A8: 9 | B8: UConn | N8: Colorado | O8: 11
B9: [2] | C9: 8 | D9: Iowa State | G9: 1 | H9: Kentucky | L9: Colorado | M9: 11 | N9: [6]
A10: 8 | B10: Iowa State | N10: UNLV | O10: 6
F11: [13] | H11: Champisonship | J11: [14]
A12: 5 | B12: Wichita State | N12: Notre Dame | O12: 7
B13: [3] | C13: 12 | D13: VCU | H13: Baylor | I13: 3 | L13: Xavier | M13: 10 | N13: [7]
A14: 12 | B14: VCU | N14: Xavier | O14: 10
D15: [10] | E15: 4 | F15: Indiana | J15: Xavier | K15: 10 | L15: [12]
A16: 13 | B16: New Mexico State | N16: Lehigh | O16: 15
B17: [4] | C17: 4 | D17: Indiana | L17: Lehigh | M17: 15 | N17: [8]
A18: 4 | B18: Indiana | N18: Duke | O18: 2
A21: Play-In Game # 1
A22: 16 | B22: Miss Valley State
B23: [P1] | C23: 16 | D23: Western Kentucky
A24: 16 | B24: Western Kentucky

Sheet West
A1: West Division | Q1: Accuracy
A2: First Round | C2: Second Round | E2: Sweet Sixteen | G2: Elite Eight | J2: Sweet Sixteen | L2: Second Round | N2: First Round | Q2: Round | R2: Correct | S2: Points
Q3: First Round | R3: 8 | S3: =R3*10 -> 80
A4: 1 | B4: Michigan State | G4: Champion | N4: Marquette | O4: 3 | Q4: Second Round | R4: 4 | S4: =R4*20 -> 80
B5: [1] | C5: 1 | D5: Michigan State | G5: 4 | H5: Louisville | L5: Marquette | M5: 3 | N5: [5] | Q5: Sweet Sixteen | R5: 2 | S5: =R5*40 -> 80
A6: 16 | B6: LIU Brooklyn | N6: BYU | O6: 14 | Q6: Elite Eight | R6: 1 | S6: =R6*80 -> 80
D7: [9] | E7: 1 | F7: Michigan State | J7: Marquette | K7: 3 | L7: [11] | Q7: Total | R7: =SUM(R3:R6) -> 15 | S7: =SUM(S3:S6) -> 320
A8: 9 | B8: Saint Louis | N8: Colorado State | O8: 11
B9: [2] | C9: 9 | D9: Saint Louis | G9: 4 | H9: Louisville | L9: Murray State | M9: 6 | N9: [6]
A10: 8 | B10: Memphis | N10: Murray State | O10: 6
F11: [13] | H11: Champisonship | J11: [14]
A12: 5 | B12: New Mexico | N12: Florida | O12: 7
B13: [3] | C13: 5 | D13: New Mexico | H13: Florida | I13: 7 | L13: Florida | M13: 7 | N13: [7]
A14: 12 | B14: Long Beach State | N14: Virginia | O14: 10
D15: [10] | E15: 4 | F15: Louisville | J15: Florida | K15: 7 | L15: [12]
A16: 13 | B16: Davidson | N16: Norfolk State | O16: 15
B17: [4] | C17: 4 | D17: Louisville | L17: Norfolk State | M17: 15 | N17: [8]
A18: 4 | B18: Louisville | N18: Missouri | O18: 2
A21: Play-In Game # 2
A22: 14 | B22: BYU
B23: [P3] | C23: 14 | D23: BYU
A24: 14 | B24: Iona

Sheet East
A1: East Division | Q1: Accuracy
A2: First Round | C2: Second Round | E2: Sweet Sixteen | G2: Elite Eight | J2: Sweet Sixteen | L2: Second Round | N2: First Round | Q2: Round | R2: Correct | S2: Points
Q3: First Round | R3: 8 | S3: =R3*10 -> 80
A4: 1 | B4: Syracuse | G4: Champion | N4: Florida State | O4: 3 | Q4: Second Round | R4: 4 | S4: =R4*20 -> 80
B5: [1] | C5: 1 | D5: Syracuse | G5: 2 | H5: Ohio State | L5: Florida State | M5: 3 | N5: [5] | Q5: Sweet Sixteen | R5: 2 | S5: =R5*40 -> 80
A6: 16 | B6: UNC-Asheville | N6: St. Bonaventure | O6: 14 | Q6: Elite Eight | R6: 1 | S6: =R6*80 -> 80
D7: [9] | E7: 1 | F7: Syracuse | J7: Cincinnati | K7: 6 | L7: [11] | Q7: Total | R7: =SUM(R3:R6) -> 15 | S7: =SUM(S3:S6) -> 320
A8: 9 | B8: Southern Miss | N8: Texas | O8: 11
B9: [2] | C9: 8 | D9: Kansas State | G9: 1 | H9: Syracuse | L9: Cincinnati | M9: 6 | N9: [6]
A10: 8 | B10: Kansas State | N10: Cincinnati | O10: 6
F11: [13] | H11: Champisonship | J11: [14]
A12: 5 | B12: Vanderbilt | N12: Gonzaga | O12: 7
B13: [3] | C13: 5 | D13: Vanderbilt | H13: Ohio State | I13: 2 | L13: Gonzaga | M13: 7 | N13: [7]
A14: 12 | B14: Harvard | N14: West Virginia | O14: 10
D15: [10] | E15: 4 | F15: Wisconsin | J15: Ohio State | K15: 2 | L15: [12]
A16: 13 | B16: Montana | N16: Loyola (MD) | O16: 15
B17: [4] | C17: 4 | D17: Wisconsin | L17: Ohio State | M17: 2 | N17: [8]
A18: 4 | B18: Wisconsin | N18: Ohio State | O18: 2

Sheet Midwest
A1: Midwest Division | Q1: Accuracy
A2: First Round | C2: Second Round | E2: Sweet Sixteen | G2: Elite Eight | J2: Sweet Sixteen | L2: Second Round | N2: First Round | Q2: Round | R2: Correct | S2: Points
Q3: First Round | R3: 8 | S3: =R3*10 -> 80
A4: 1 | B4: North Carolina | G4: Champion | N4: Georgetown | O4: 3 | Q4: Second Round | R4: 4 | S4: =R4*20 -> 80
B5: [1] | C5: 1 | D5: North Carolina | G5: 2 | H5: Kansas | L5: Georgetown | M5: 3 | N5: [5] | Q5: Sweet Sixteen | R5: 2 | S5: =R5*40 -> 80
A6: 16 | B6: Vermont | N6: Belmont | O6: 14 | Q6: Elite Eight | R6: 1 | S6: =R6*80 -> 80
D7: [9] | E7: 1 | F7: North Carolina | J7: NC State | K7: 11 | L7: [11] | Q7: Total | R7: =SUM(R3:R6) -> 15 | S7: =SUM(S3:S6) -> 320
A8: 9 | B8: Alabama | N8: NC State | O8: 11
B9: [2] | C9: 8 | D9: Creighton | G9: 1 | H9: North Carolina | L9: NC State | M9: 11 | N9: [6]
A10: 8 | B10: Creighton | N10: San Diego State | O10: 6
F11: [13] | H11: Champisonship | J11: [14]
A12: 5 | B12: Temple | N12: Saint Mary's | O12: 7
B13: [3] | C13: 12 | D13: South Florida | H13: Kansas | I13: 2 | L13: Purdue | M13: 10 | N13: [7]
A14: 12 | B14: South Florida | N14: Purdue | O14: 10
D15: [10] | E15: 13 | F15: Ohio | J15: Kansas | K15: 2 | L15: [12]
A16: 13 | B16: Ohio | N16: Detroit | O16: 15
B17: [4] | C17: 13 | D17: Ohio | L17: Kansas | M17: 2 | N17: [8]
A18: 4 | B18: Michigan | N18: Kansas | O18: 2
A21: Play-In Game # 3
A22: 16 | B22: Lamar
B23: [P3] | C23: 16 | D23: Vermont
A24: 16 | B24: Vermont
A28: Play-In Game # 4
A29: 12 | B29: California
B30: [P4] | C30: 12 | D30: South Florida
A31: 12 | B31: South Florida

Sheet Final Four
A1: Final Four | J1: Accuracy
A2: Final Four | C2: Finals | E2: Champions!!! | J2: Round | K2: Correct | L2: Points
J3: First Round | K3: 32 | L3: =K3*10 -> 320
A4: 1 | B4: Kentucky | G4: National | J4: Second Round | K4: 16 | L4: =K4*20 -> 320
A5: South Champs | C5: 1 | D5: Kentucky | G5: Champions | J5: Sweet Sixteen | K5: 8 | L5: =K5*40 -> 320
A6: 4 | B6: Louisville | G6: 1 | H6: Kentucky | J6: Elite Eight | K6: 4 | L6: =K6*80 -> 320
A7: West Champs | J7: Final Four | K7: 2 | L7: =K7*160 -> 320
A8: 2 | B8: Ohio State | J8: Championship | K8: 1 | L8: =K8*320 -> 320
A9: East Champs | C9: 2 | D9: Kansas | J9: Total | K9: =SUM(K3:K8) -> 63 | L9: =SUM(L3:L8) -> 1920
A10: 2 | B10: Kansas
A11: Midwest Champs
